bitfinex-derivatives/quotes_BTCF0:USTF0_20250508
["timestamp","ask_amount","ask_price","bid_price","bid_amount"]
[1746740926698,0.1840693,103180.0,103170.0,0.93177729]
[1746740926902,0.1810693,103180.0,103170.0,0.93177729]
[1746740927208,0.17090112,103220.0,103210.0,0.1937699]
[1746740927413,0.12180205,103220.0,103210.0,0.89178515]
[1746740927601,0.19633063,103230.0,103220.0,0.1937512]
[1746740927800,0.31633063,103230.0,103220.0,0.92530645]
[1746740928105,0.31633063,103230.0,103220.0,1.09330645]
[1746740928908,0.31633063,103230.0,103220.0,0.73250645]
[1746740929110,0.31633063,103230.0,103220.0,0.5460512]
[1746740929311,0.51306303,103230.0,103220.0,0.6966912]
[1746740929606,1.02001772,103230.0,103220.0,0.50294]
[1746740929807,1.53583648,103230.0,103220.0,0.168]
[1746740930007,1.88971248,103230.0,103220.0,0.168]
[1746740930210,1.88971248,103230.0,103210.0,0.3822]
[1746740930211,0.1937512,103220.0,103210.0,0.3822]
[1746740930405,0.33994339,103200.0,103190.0,0.5332601]
[1746740930606,0.46994339,103200.0,103190.0,0.7262601]
[1746740930805,0.48994339,103200.0,103190.0,0.7262675]
[1746740931112,0.48994339,103200.0,103190.0,0.3868075]
[1746740931311,0.68384339,103200.0,103190.0,0.3868075]
[1746740931711,0.87284339,103200.0,103190.0,0.5760075]
[1746740932705,0.151,103200.0,103190.0,0.58316369]
[1746740932906,0.143,103200.0,103190.0,1.1885073]
[1746740933214,0.143,103200.0,103190.0,1.2854113]
[1746740933604,0.143,103200.0,103190.0,1.1885073]
[1746740934211,0.143,103200.0,103190.0,1.4534113]
[1746740934610,0.141,103200.0,103190.0,1.11196369]
[1746740934912,0.141,103200.0,103190.0,1.3565073]
[1746740936209,0.14,103200.0,103190.0,1.3675073]
[1746740936403,0.14,103200.0,103190.0,1.4644113]
[1746740936608,0.14,103200.0,103190.0,1.4615113]
[1746740937409,0.14,103200.0,103190.0,1.3646073]
[1746740937713,0.27615469,103200.0,103190.0,1.4515044]
[1746740937916,0.46994339,103200.0,103190.0,1.4515044]
[1746740938214,0.46994339,103200.0,103190.0,0.62971149]
[1746740938414,0.85224339,103200.0,103190.0,0.62971149]
[1746740938913,0.85224339,103200.0,103190.0,0.99051149]
[1746740939114,0.7060887,103200.0,103190.0,0.99051149]
[1746740939314,0.66494339,103200.0,103190.0,0.62971149]
[1746740939710,0.13,103200.0,103190.0,0.8742551]
[1746740940813,0.13,103200.0,103190.0,1.2350551]
[1746740941815,0.13,103200.0,103190.0,1.4211551]
[1746740942317,0.27615469,103200.0,103190.0,1.4211551]
[1746740942518,0.65895469,103200.0,103190.0,1.4211551]
[1746740942815,0.27615469,103200.0,103190.0,1.4211551]
[1746740943015,0.13,103200.0,103190.0,1.4211551]
[1746740943517,0.13,103200.0,103190.0,1.17661149]
[1746740943706,0.27615469,103200.0,103190.0,1.4211551]
[1746740943909,0.27615469,103200.0,103190.0,1.5708351]
[1746740944109,0.27615469,103200.0,103190.0,1.32629149]
[1746740944316,0.45925469,103200.0,103190.0,1.5708351]
[1746740945220,1.01384339,103200.0,103190.0,0.62971149]
[1746740945419,1.20194339,103200.0,103190.0,0.62971149]
[1746740946714,1.20194339,103200.0,103190.0,0.58126369]
[1746740947122,1.36994339,103200.0,103190.0,0.58126369]
[1746740948219,1.20194339,103200.0,103190.0,0.58046369]
[1746740948522,1.27564917,103200.0,103190.0,0.58046369]
[1746740949918,0.1938263,103180.0,103170.0,0.24663514]
[1746740950119,0.28615469,103180.0,103170.0,0.67492964]
[1746740950422,0.1938826,103150.0,103140.0,0.00387822]
[1746740950619,0.1939202,103130.0,103110.0,0.14499732]
[1746740950822,1.35771958,103130.0,103110.0,0.14499732]
[1746740951022,1.37013958,103130.0,103110.0,0.14499732]
[1746740951222,1.75923958,103130.0,103120.0,0.00829364]
[1746740951525,1.75923958,103130.0,103120.0,0.00085]
[1746740951730,1.81790422,103130.0,103120.0,0.00085]
[1746740952923,1.81790422,103130.0,103120.0,0.00585]
[1746740953123,1.81790422,103130.0,103120.0,0.00985]
[1746740954230,1.98590422,103130.0,103120.0,0.00985]
[1746740954928,1.98590422,103130.0,103120.0,0.00875]
[1746740955126,1.81790422,103130.0,103120.0,0.00875]
[1746740955724,1.81790422,103130.0,103120.0,0.02700057]
[1746740957032,0.193939,103120.0,103110.0,0.00842705]
[1746740957226,1.67986424,103120.0,103110.0,0.00096983]
[1746740958237,1.67986424,103120.0,103110.0,0.00496983]
[1746740960337,1.68086424,103120.0,103110.0,0.00096983]
[1746740960642,1.68086424,103120.0,103110.0,0.01900579]
[1746740960937,1.77784424,103120.0,103110.0,0.01900579]
[1746740961328,1.53278302,103120.0,103110.0,0.01900579]
[1746740963042,1.53278302,103120.0,103110.0,0.03417227]
[1746740963639,1.2877218,103120.0,103110.0,0.03417227]
[1746740963843,1.53278302,103120.0,103110.0,0.03417227]
[1746740965035,1.2877218,103120.0,103110.0,0.03417227]
[1746740965236,1.55072811,103120.0,103110.0,0.03417227]
[1746740965436,1.55072811,103120.0,103110.0,0.01613631]
[1746740965643,1.69904811,103120.0,103110.0,0.01613631]
[1746740966031,0.1939579,103110.0,103100.0,0.11001518]
[1746740966243,1.62372192,103110.0,103100.0,0.11001518]
[1746740966637,1.62372192,103110.0,103100.0,0.10290966]
[1746740967545,1.62372192,103110.0,103100.0,0.10590966]
[1746740967735,1.62372192,103110.0,103100.0,0.10370966]
[1746740968136,1.62372192,103110.0,103100.0,0.10670966]
[1746740969644,1.62372192,103110.0,103100.0,6e-08]
[1746740971147,1.72070992,103110.0,103100.0,6e-08]
[1746740973846,1.84932718,103110.0,103100.0,6e-08]
[1746740978246,0.1939767,103100.0,103090.0,0.3658]
[1746740978551,1.38271874,103100.0,103090.0,0.3658]
[1746740979039,0.1939955,103090.0,103080.0,0.19347011]
[1746740979246,1.39273754,103090.0,103080.0,0.00097011]
[1746740979850,1.39273754,103090.0,103080.0,1e-08]
[1746740980047,1.19303754,103090.0,103080.0,1e-08]
[1746740980350,1.19403754,103090.0,103080.0,0.01209171]
[1746740980748,1.37933754,103090.0,103080.0,0.01209171]
[1746740981147,1.38033754,103090.0,103080.0,0.01909171]
[1746740981342,1.39844645,103090.0,103080.0,0.01909171]
[1746740981543,1.39844645,103090.0,103080.0,1e-08]
[1746740982548,1.49545446,103090.0,103080.0,1e-08]
[1746740982744,2.0152737,103090.0,103080.0,1e-08]
[1746740983048,0.3198171,103080.0,103070.0,0.104544]
[1746740983248,0.1940331,103070.0,103060.0,0.1836]
[1746740983550,1.40207514,103070.0,103060.0,0.1836]
[1746740983743,0.194052,103060.0,103050.0,0.0081158]
[1746740983947,0.89169124,103060.0,103050.0,0.00097039]
[1746740984142,1.26129124,103060.0,103050.0,0.16897039]
[1746740985254,1.01749404,103060.0,103050.0,0.16897039]
[1746740985440,0.89269124,103060.0,103050.0,0.17397039]
[1746740985846,0.89369124,103060.0,103050.0,0.17797039]
[1746740986043,0.89369124,103060.0,103050.0,0.37477039]
[1746740986548,0.89369124,103060.0,103050.0,0.57057039]
[1746740986751,1.08189124,103060.0,103050.0,0.57057039]
[1746740986945,1.27949124,103060.0,103050.0,0.57057039]
[1746740987349,1.40529404,103060.0,103050.0,0.57057039]
[1746740988652,1.40529404,103060.0,103050.0,0.177]
[1746740988954,1.37529404,103060.0,103050.0,9e-08]
[1746740989159,1.38529404,103060.0,103050.0,9e-08]
[1746740989346,0.1940708,103050.0,103040.0,0.5798]
[1746740989546,1.26521004,103050.0,103040.0,0.5798]
[1746740990052,1.26489742,103050.0,103040.0,0.3542]
[1746740990558,1.26589742,103050.0,103040.0,0.3592]
[1746740990954,1.26689742,103050.0,103040.0,0.3632]
[1746740991157,1.26689742,103050.0,103040.0,0.37837584]
[1746740992153,1.06929742,103050.0,103040.0,0.37837584]
[1746740992359,0.68655818,103050.0,103040.0,0.38553989]
[1746740992546,0.68655818,103050.0,103040.0,0.58193989]
[1746740992750,0.68655818,103050.0,103040.0,0.77763989]
[1746740993358,0.87339742,103050.0,103040.0,0.77763989]
[1746740993558,0.87339742,103050.0,103040.0,0.7829336]
[1746740993863,0.68655818,103050.0,103040.0,0.7829336]
[1746740994160,1.06529742,103050.0,103040.0,0.7829336]
[1746740994361,1.07029742,103050.0,103040.0,0.7799336]
[1746740994864,0.87839742,103050.0,103040.0,0.7799336]
[1746740995461,0.87839742,103050.0,103040.0,0.77996331]
[1746740995758,0.87839742,103050.0,103040.0,0.77496331]
[1746740995963,0.88945818,103050.0,103040.0,0.77496331]
[1746740997759,1.07629742,103050.0,103040.0,0.76779926]
[1746740998062,1.26199742,103050.0,103040.0,0.76779926]
[1746740998263,1.26199742,103050.0,103040.0,0.59979926]
[1746740998656,1.28000566,103050.0,103040.0,0.59979926]
[1746740999163,1.40580846,103050.0,103040.0,0.59979926]
[1746740999363,1.40580846,103050.0,103040.0,0.59976082]
[1746740999564,0.90746642,103050.0,103040.0,0.59976082]
[1746740999763,0.71556642,103050.0,103040.0,0.59976082]
[1746741000167,0.71556642,103050.0,103040.0,0.76776082]
[1746741000356,0.91326642,103050.0,103040.0,0.76776082]
[1746741000558,1.09436642,103050.0,103040.0,0.76776082]
[1746741000761,1.40700846,103050.0,103040.0,0.76776082]
[1746741001054,0.013,103050.0,103040.0,1.49573365]
[1746741001257,0.6518981,103060.0,103050.0,0.1940708]
[1746741001463,0.6233819,103060.0,103050.0,0.59465578]
[1746741001658,0.6233819,103060.0,103050.0,0.60983162]
[1746741002253,0.6233819,103060.0,103050.0,0.77783162]
[1746741002566,0.8591847,103060.0,103050.0,0.58376082]
[1746741002759,0.8651847,103060.0,103050.0,0.58476082]
[1746741002966,0.8721847,103060.0,103050.0,0.58576082]
[1746741003264,0.8721847,103060.0,103050.0,0.58047584]
[1746741003765,0.8921847,103060.0,103050.0,0.58047584]
[1746741003958,1.0803847,103060.0,103050.0,0.58047584]
[1746741004359,1.2794847,103060.0,103050.0,0.58047584]
[1746741004559,1.2794847,103060.0,103050.0,0.5653]
[1746741004762,0.7663819,103060.0,103050.0,0.5653]
[1746741005166,1.2683847,103060.0,103050.0,0.5653]
[1746741005561,1.2483847,103060.0,103050.0,0.5653]
[1746741006265,1.2483847,103060.0,103050.0,0.17]
[1746741007368,1.2483847,103060.0,103050.0,0.3698]
[1746741007669,1.2483847,103060.0,103050.0,0.5546]
[1746741009874,1.2483847,103060.0,103050.0,0.5525]
[1746741012967,1.34702111,103060.0,103050.0,0.5525]
[1746741014372,1.34944111,103060.0,103050.0,0.5525]
[1746741015969,1.2508047,103060.0,103050.0,0.5525]
[1746741016171,1.2508047,103060.0,103050.0,0.5499]
[1746741021375,1.2508047,103060.0,103050.0,0.3651]
[1746741021881,1.2508047,103060.0,103050.0,0.5572]
[1746741023881,1.2508047,103060.0,103050.0,0.1653]
[1746741025184,1.43764394,103060.0,103050.0,0.1653]
[1746741025385,1.60091122,103060.0,103050.0,0.1653]
[1746741026080,1.41407198,103060.0,103050.0,0.1653]
[1746741026385,1.60091122,103060.0,103050.0,0.1653]
[1746741026682,1.60091122,103060.0,103050.0,0.1089104]
[1746741027184,1.60091122,103060.0,103050.0,0.002]
[1746741028780,0.1940896,103040.0,103030.0,0.38281163]
[1746741028982,1.22252884,103040.0,103030.0,0.00291163]
[1746741029279,1.34833164,103040.0,103030.0,0.17091163]
[1746741029485,1.73143164,103040.0,103030.0,0.17091163]
[1746741029986,1.73443164,103040.0,103030.0,0.17091163]
[1746741031076,1.73443164,103040.0,103030.0,0.00291163]
[1746741031479,1.74167493,103040.0,103030.0,0.00291163]
[1746741031686,1.74367493,103040.0,103030.0,0.00391163]
[1746741032079,1.77624106,103040.0,103030.0,0.00391163]
[1746741032279,1.77924106,103040.0,103030.0,0.00491163]
[1746741032779,1.77924106,103040.0,103030.0,0.00221163]
[1746741033587,1.80924106,103040.0,103030.0,3e-08]
[1746741034179,1.9729214,103040.0,103030.0,3e-08]
[1746741034983,0.3199113,103030.0,103020.0,1e-08]
[1746741035293,1.56065054,103030.0,103020.0,1e-08]
[1746741036184,1.56307054,103030.0,103020.0,1e-08]
[1746741036383,1.56407054,103030.0,103020.0,1e-08]
[1746741036586,1.56507054,103030.0,103020.0,1e-08]
[1746741036990,1.55507054,103030.0,103020.0,1e-08]
[1746741037891,1.59518842,103030.0,103020.0,1e-08]
[1746741041187,1.60218842,103030.0,103020.0,0.00100001]
[1746741041386,1.60218842,103030.0,103020.0,1e-08]
[1746741041784,1.60818842,103030.0,103020.0,0.00100001]
[1746741042682,1.81502766,103030.0,103020.0,1e-08]
[1746741043077,1.93825346,103030.0,103020.0,1e-08]
[1746741044390,1.75141422,103030.0,103020.0,1e-08]
[1746741045994,1.93825346,103030.0,103020.0,1e-08]
[1746741047795,1.75141422,103030.0,103020.0,1e-08]
[1746741048089,0.38100424,103000.0,102990.0,0.00097096]
[1746741048283,1.36840704,103000.0,102990.0,0.38387096]
[1746741048488,1.75420704,103000.0,102990.0,0.38387096]
[1746741049196,1.75420704,103000.0,102990.0,0.55187096]
[1746741049391,1.75620704,103000.0,102990.0,0.16897096]
[1746741049783,1.75820704,103000.0,102990.0,0.16997096]
[1746741050178,1.75820704,103000.0,102990.0,0.13286766]
[1746741050993,1.79120285,103000.0,102990.0,0.13286766]
[1746741051191,1.79120285,103000.0,102990.0,0.08897736]
[1746741051387,0.1941839,102990.0,102980.0,0.3829]
[1746741051594,1.38132594,102990.0,102980.0,0.3829]
[1746741052184,1.38132594,102990.0,102980.0,0.5509]
[1746741052390,1.38132594,102990.0,102980.0,0.5539]
[1746741052594,1.56816518,102990.0,102980.0,0.5539]
[1746741052892,1.75556518,102990.0,102980.0,0.5539]
[1746741053797,0.1942216,102970.0,102960.0,0.20168485]
[1746741053991,0.88186084,102970.0,102960.0,0.57708485]
[1746741054181,0.74186084,102970.0,102960.0,0.74508485]
[1746741054382,1.07216084,102970.0,102960.0,0.74508485]
[1746741054785,1.24036084,102970.0,102960.0,0.33564035]
[1746741054985,1.55736364,102970.0,102960.0,0.178]
[1746741055189,1.55836364,102970.0,102960.0,0.178]
[1746741055490,1.42836364,102970.0,102960.0,0.178]
[1746741055698,1.56836364,102970.0,102960.0,0.178]
[1746741056087,1.56636364,102970.0,102960.0,0.171]
[1746741056287,1.2395244,102970.0,102960.0,0.171]
[1746741056487,1.55636364,102970.0,102960.0,0.171]
[1746741056892,1.58924023,102970.0,102960.0,0.171]
[1746741057089,1.58924023,102970.0,102960.0,0.002]
[1746741057288,1.58924023,102970.0,102960.0,1e-07]
[1746741057594,1.76607947,102970.0,102960.0,1e-07]
[1746741057807,0.1942593,102950.0,102940.0,0.5364]
[1746741058090,1.22850134,102950.0,102940.0,0.1382426]
[1746741058291,0.1942782,102940.0,102930.0,0.00388612]
[1746741058493,0.1942782,102940.0,102910.0,0.1953]
[1746741058494,0.1943159,102920.0,102910.0,0.1953]
[1746741058703,0.88195514,102920.0,102910.0,0.5616]
[1746741058905,1.72895794,102920.0,102910.0,0.3663]
[1746741059205,0.1943348,102910.0,102900.0,0.10097181]
[1746741059393,1.55457684,102910.0,102900.0,0.10097181]
[1746741059591,1.54457684,102910.0,102900.0,0.10097181]
[1746741059791,1.54457684,102910.0,102900.0,0.28447181]
[1746741059995,1.54457684,102910.0,102900.0,0.46727181]
[1746741060189,1.55457684,102910.0,102900.0,0.63527181]
[1746741060793,1.74141608,102910.0,102900.0,0.26897181]
[1746741060990,1.74141608,102910.0,102900.0,0.24336791]
[1746741060991,1.83859208,102910.0,102900.0,0.24336791]
[1746741061186,1.53575528,102910.0,102890.0,0.17091559]
[1746741061401,0.3201754,102890.0,102880.0,0.10151182]
[1746741061693,0.3201754,102890.0,102880.0,0.01401062]
[1746741061694,1.15041464,102890.0,102880.0,0.01401062]
[1746741061994,0.1943915,102880.0,102870.0,0.1940523]
[1746741062197,1.19583354,102880.0,102870.0,0.5704523]
[1746741062499,0.6951915,102880.0,102870.0,0.5675523]
[1746741062799,0.6851915,102880.0,102870.0,0.60030081]
[1746741063297,0.86783354,102880.0,102870.0,0.36389191]
[1746741063487,1.38153354,102880.0,102870.0,0.3235348]
[1746741063689,1.38153354,102880.0,102870.0,0.1494078]
[1746741063887,0.5551915,102880.0,102870.0,0.0792116]
[1746741064099,0.1944104,102870.0,102860.0,0.00291659]
[1746741064290,1.43839168,102870.0,102860.0,0.03500762]
[1746741064490,0.1944293,102860.0,102850.0,0.0271891]
[1746741064691,1.25576854,102860.0,102850.0,0.0271891]
[1746741064993,0.320251,102850.0,102840.0,7e-08]
[1746741065187,1.73106948,102850.0,102840.0,7e-08]
[1746741065387,1.39423024,102850.0,102840.0,7e-08]
[1746741065589,1.52423024,102850.0,102840.0,7e-08]
[1746741065793,1.434623,102850.0,102840.0,7e-08]
[1746741065999,1.54423024,102850.0,102840.0,7e-08]
[1746741066197,1.66566148,102850.0,102840.0,7e-08]
[1746741066393,1.3923882,102850.0,102840.0,0.00500007]
[1746741066596,1.39259024,102850.0,102840.0,0.00500007]
[1746741066797,1.26678744,102850.0,102840.0,0.00500007]
[1746741067092,1.26678744,102850.0,102840.0,0.17300007]
[1746741067093,1.39259024,102850.0,102840.0,0.17300007]
[1746741067296,0.7494482,102850.0,102840.0,0.36746717]
[1746741067493,0.4818,102850.0,102840.0,0.61746717]
[1746741067695,0.6862482,102850.0,102840.0,1.28693841]
[1746741067999,1.08951328,102850.0,102820.0,0.00291758]
[1746741068199,0.1945049,102820.0,102810.0,0.16984636]
[1746741068397,0.7053049,102820.0,102810.0,0.16984636]
[1746741068601,1.0806049,102820.0,102810.0,0.16594636]
[1746741068901,1.21883833,102820.0,102810.0,0.16594636]
[1746741069095,1.22883833,102820.0,102810.0,0.16594636]
[1746741069289,0.1945238,102810.0,102800.0,0.48880564]
[1746741069489,0.8929238,102810.0,102800.0,0.29426284]
[1746741069695,1.0771238,102810.0,102800.0,0.29426284]
[1746741070094,0.8516,102810.0,102800.0,0.82865404]
[1746741070396,0.5573196,102820.0,102810.0,0.1945238]
[1746741070699,0.8949196,102820.0,102810.0,0.1945238]
[1746741070997,0.1945238,102810.0,102800.0,0.1]
[1746741071204,1.0671238,102810.0,102800.0,0.1]
[1746741071393,1.0671238,102810.0,102800.0,0.2841]
[1746741071595,1.0681238,102810.0,102800.0,0.2841]
[1746741071796,1.1939266,102810.0,102800.0,0.1841]
[1746741071999,1.25076584,102810.0,102800.0,0.1841]
[1746741072192,0.1945428,102800.0,102790.0,0.20111857]
[1746741072397,1.1801456,102800.0,102790.0,0.18351857]
[1746741072600,1.37698484,102800.0,102790.0,0.18351857]
[1746741072892,1.1801456,102800.0,102790.0,0.18351857]
[1746741073092,1.1701456,102800.0,102790.0,0.18351857]
[1746741073301,0.8687456,102800.0,102790.0,0.18351857]
[1746741073605,1.1901456,102800.0,102790.0,0.36631857]
[1746741073903,1.1901456,102800.0,102790.0,0.56088027]
[1746741074297,1.0511456,102800.0,102790.0,7e-08]
[1746741074496,1.3231456,102800.0,102790.0,7e-08]
[1746741074697,1.3331456,102800.0,102790.0,7e-08]
[1746741075104,1.86726484,102800.0,102790.0,7e-08]
[1746741075299,0.1945617,102790.0,102780.0,0.00097294]
[1746741075500,1.56270367,102790.0,102780.0,0.00097294]
[1746741076209,0.17445853,102760.0,102720.0,0.36469407]
[1746741076409,0.1946753,102730.0,102720.0,0.55938767]
[1746741076602,0.3246753,102730.0,102720.0,0.84357491]
[1746741076911,0.5554059,102770.0,102750.0,0.0486567]
[1746741077208,0.88224514,102770.0,102760.0,0.1946185]
[1746741077507,0.3608,102780.0,102770.0,0.1945995]
[1746741077712,0.002,102790.0,102780.0,0.1942806]
[1746741077910,0.4708,102810.0,102790.0,0.0486378]
[1746741078209,0.4808,102810.0,102800.0,0.3822428]
[1746741078405,0.12,102810.0,102800.0,0.3822428]
[1746741078608,0.7053238,102810.0,102800.0,0.1867]
[1746741078811,1.31465577,102810.0,102800.0,0.1867]
[1746741079107,1.49775577,102810.0,102800.0,0.1867]
[1746741079310,1.50541653,102810.0,102800.0,0.1867]
[1746741079510,0.13,102810.0,102800.0,0.4785148]
[1746741079805,0.0013,102820.0,102810.0,0.1945238]
[1746741080107,0.21,102840.0,102830.0,0.194486]
[1746741080321,0.05,102840.0,102830.0,0.2431057]
[1746741080504,0.05,102840.0,102830.0,0.3403497]
[1746741080806,0.0013,102850.0,102840.0,0.1944671]
[1746741081006,0.1413,102850.0,102840.0,0.5552671]
[1746741081211,0.1413,102850.0,102840.0,0.6524991]
[1746741081707,0.3357482,102850.0,102840.0,0.6524991]
[1746741081907,0.3357482,102850.0,102840.0,0.8389991]
[1746741082110,0.3407482,102850.0,102840.0,0.8389991]
[1746741082310,0.3429,102850.0,102840.0,0.8389991]
[1746741082707,0.3429,102850.0,102840.0,0.84437935]
[1746741082906,0.1523,102850.0,102840.0,0.84437935]
[1746741083107,0.1523,102850.0,102840.0,0.74437935]
[1746741083308,0.1523,102850.0,102840.0,0.66205622]
[1746741083617,0.1523,102850.0,102840.0,0.75928822]
[1746741084318,0.1523,102850.0,102840.0,0.76646612]
[1746741084507,0.1473,102850.0,102840.0,0.66923412]
[1746741084713,0.1453,102850.0,102840.0,0.76646612]
[1746741085016,0.1904,102850.0,102840.0,0.66923412]
[1746741085210,0.3104,102850.0,102840.0,0.57476702]
[1746741085414,0.3104,102850.0,102840.0,0.76923412]
[1746741085808,0.5048482,102850.0,102840.0,0.76923412]
[1746741086014,1.36268094,102850.0,102840.0,0.02746702]
[1746741086211,1.14104093,102850.0,102840.0,0.02208677]
[1746741086417,1.36268094,102850.0,102840.0,0.57735387]
[1746741086610,1.36268094,102850.0,102840.0,0.5746814]
[1746741086811,1.36268094,102850.0,102840.0,0.7691485]
[1746741087009,0.92018821,102850.0,102840.0,0.6015485]
[1746741087304,0.1393,102850.0,102840.0,0.9623485]
[1746741088211,0.1393,102850.0,102840.0,0.96247576]
[1746741090018,0.1393,102850.0,102840.0,0.96255841]
[1746741092217,0.1393,102850.0,102840.0,1.05979041]
[1746741092422,0.1393,102850.0,102840.0,1.47569041]
[1746741092721,0.1393,102850.0,102840.0,1.47546703]
[1746741093021,0.1393,102850.0,102840.0,1.69714331]
[1746741093212,0.1393,102850.0,102840.0,1.73714331]
[1746741094213,0.1393,102850.0,102840.0,1.5155033]
[1746741094413,0.1393,102850.0,102840.0,1.73714331]
[1746741095112,0.1393,102850.0,102840.0,1.88446331]
[1746741095314,0.1393,102850.0,102840.0,1.88443865]
[1746741095516,0.1393,102850.0,102840.0,1.90443865]
[1746741095721,0.1393,102850.0,102840.0,2.19443865]
[1746741096812,0.008,102850.0,102840.0,1.84443865]
[1746741097011,0.1805,102880.0,102870.0,0.1944104]
[1746741097319,0.77299273,102880.0,102870.0,0.56070317]
[1746741097716,0.77299273,102880.0,102870.0,0.95401204]
[1746741098316,0.96329273,102880.0,102870.0,0.95401204]
[1746741098819,0.96572273,102880.0,102870.0,0.95401204]
[1746741099013,0.97272273,102880.0,102870.0,0.95401204]
[1746741099214,0.97972273,102880.0,102870.0,0.95501204]
[1746741099422,0.97972273,102880.0,102870.0,1.10093204]
[1746741099918,0.97772273,102880.0,102870.0,1.10093204]
[1746741100123,0.53523,102880.0,102870.0,1.19813604]
[1746741100624,0.97772273,102880.0,102870.0,1.10093204]
[1746741100823,0.97772273,102880.0,102870.0,1.10105787]
[1746741101019,0.97772273,102880.0,102870.0,1.94269788]
[1746741101020,0.01443,102880.0,102870.0,1.94269788]
[1746741101220,0.16557,102900.0,102870.0,2.32122112]
[1746741101411,0.05967505,102920.0,102910.0,0.1943348]
[1746741101613,0.3674,102930.0,102920.0,0.1943159]
[1746741101816,0.75209273,102930.0,102920.0,0.78237451]
[1746741102019,0.76209273,102930.0,102920.0,0.5607345]
[1746741102512,1.13798973,102930.0,102920.0,0.70477868]
[1746741102826,1.11798973,102930.0,102920.0,0.5551159]
[1746741103424,1.11798973,102930.0,102920.0,0.56451374]
[1746741103824,1.11798973,102930.0,102920.0,0.56995729]
[1746741104022,0.92369273,102930.0,102920.0,0.56995729]
[1746741104220,0.4912,102930.0,102920.0,0.57195729]
[1746741104421,0.93369273,102930.0,102920.0,0.57195842]
[1746741105023,0.94369273,102930.0,102920.0,0.57195842]
[1746741107130,0.94369273,102930.0,102920.0,0.79359843]
[1746741107824,0.94369273,102930.0,102920.0,0.57195842]
[1746741108022,0.94369273,102930.0,102920.0,0.7140892]
[1746741108629,0.94369273,102930.0,102920.0,0.93572921]
[1746741108828,0.94369273,102930.0,102920.0,0.7140892]
[1746741109430,0.5012,102930.0,102920.0,0.93572921]
[1746741109726,0.3196,102930.0,102920.0,1.03288921]
[1746741109922,0.2859542,102930.0,102920.0,1.23288921]
[1746741110122,0.14,102930.0,102920.0,1.45452922]
[1746741110523,0.14,102930.0,102920.0,1.0112492]
[1746741110830,0.00342,102940.0,102930.0,0.194297]
[1746741111029,0.01342,102940.0,102930.0,0.56103246]
[1746741111333,0.01342,102940.0,102930.0,0.87982047]
[1746741111629,0.01342,102940.0,102930.0,2.47982047]
[1746741111820,0.2103,102960.0,102950.0,0.1942593]
[1746741112020,0.75379273,102960.0,102950.0,0.78263477]
[1746741112232,0.75379273,102960.0,102950.0,0.96893477]
[1746741112421,0.75379273,102960.0,102950.0,1.06606277]
[1746741112422,0.1303,102960.0,102950.0,1.06606277]
[1746741113123,0.3232,102960.0,102950.0,1.06606277]
[1746741113323,0.3232,102960.0,102950.0,1.0659423]
[1746741113528,0.3252,102960.0,102950.0,1.0659423]
[1746741114032,0.1323,102960.0,102950.0,1.6267423]
[1746741114332,0.1303,102960.0,102950.0,1.6267423]
[1746741114920,0.101,103000.0,102990.0,0.1941839]
[1746741115125,0.1232258,103010.0,103000.0,0.194165]
[1746741115428,0.14894973,103030.0,103000.0,1.18993361]
[1746741115728,0.53270879,103050.0,103020.0,0.3608]
[1746741115930,0.71870879,103050.0,103040.0,0.1940896]
[1746741116119,0.71870879,103050.0,103040.0,0.19990459]
[1746741116319,1.16120152,103050.0,103040.0,0.34102459]
[1746741116523,1.16120152,103050.0,103040.0,0.19990459]
[1746741116825,1.16620152,103050.0,103040.0,0.38900079]
[1746741117026,1.61027232,103050.0,103040.0,0.00569283]
[1746741117228,0.0970594,103030.0,103020.0,0.14116]
[1746741117426,0.99741633,103030.0,103020.0,0.3352873]
[1746741117625,0.80329273,103030.0,103020.0,0.3352873]
[1746741117834,0.99419273,103030.0,103020.0,0.3352873]
[1746741118031,0.99419273,103030.0,103020.0,0.34260307]
[1746741118232,0.63339273,103030.0,103020.0,0.70340307]
[1746741119036,0.63539273,103030.0,103020.0,0.70340307]
[1746741120138,0.63539273,103030.0,103020.0,0.34260307]
[1746741120438,0.81749273,103030.0,103020.0,0.70340307]
[1746741122824,0.81749273,103030.0,103020.0,0.56224307]
[1746741123026,0.81749273,103030.0,103020.0,0.34372307]
[1746741123229,0.81749273,103030.0,103020.0,0.70452307]
[1746741125034,0.375,103030.0,103020.0,0.70452307]
[1746741125238,0.1841,103030.0,103020.0,1.39052708]
[1746741125436,0.1841,103030.0,103020.0,1.78540708]
[1746741125640,0.1841,103030.0,103020.0,3.13540708]
[1746741126341,0.1811,103040.0,103030.0,0.1941085]
[1746741126535,0.1811,103040.0,103030.0,1.14384851]
[1746741126735,0.1811,103040.0,103030.0,1.24090451]
[1746741127930,0.1932,103050.0,103040.0,0.1940896]
[1746741128142,0.372,103050.0,103040.0,0.9257896]
[1746741128341,0.81449273,103050.0,103040.0,0.9257896]
[1746741128542,0.81449273,103050.0,103040.0,0.5548896]
[1746741128931,0.372,103050.0,103040.0,1.02283359]
[1746741129131,0.372,103050.0,103040.0,1.25032357]
[1746741129335,0.1788,103050.0,103040.0,1.25032357]
[1746741129731,0.1798,103050.0,103040.0,1.24941034]
[1746741129936,0.1798,103050.0,103040.0,1.24941534]
[1746741130843,0.1798,103050.0,103040.0,0.93364457]
[1746741131040,0.3653,103050.0,103040.0,0.93364457]
[1746741131240,0.1798,103050.0,103040.0,2.38068856]
[1746741131440,0.1798,103050.0,103040.0,2.38114066]
[1746741131640,0.1798,103050.0,103040.0,2.60187638]
[1746741132143,0.1788,103050.0,103040.0,2.28509667]
[1746741132854,0.1788,103050.0,103040.0,2.56705667]
[1746741133441,0.62129273,103050.0,103040.0,2.56705667]
[1746741133848,0.62129273,103050.0,103040.0,1.91419667]
[1746741134058,0.0970502,103040.0,103020.0,0.36811577]
[1746741134352,0.1941273,103020.0,103010.0,0.60458827]
[1746741134547,0.87930426,103020.0,103010.0,0.3608]
[1746741134750,1.29400772,103020.0,102990.0,0.00097096]
[1746741135053,0.1942027,102980.0,102970.0,0.3351742]
[1746741135260,0.63549608,102980.0,102970.0,0.1942142]
[1746741135449,1.55024698,102980.0,102960.0,0.2043215]
[1746741135758,0.99091498,102970.0,102960.0,0.2199752]
[1746741135954,0.1942404,102960.0,102950.0,0.38584758]
[1746741136147,1.33266508,102960.0,102950.0,0.09404758]
[1746741136343,1.42978948,102960.0,102940.0,0.58093664]
[1746741136647,0.79248896,102950.0,102940.0,0.58093664]
[1746741136955,0.93248896,102950.0,102940.0,0.58093664]
[1746741137449,1.15322468,102950.0,102940.0,0.48380114]
[1746741137655,0.93248896,102950.0,102940.0,0.2428286]
[1746741137860,0.58168896,102950.0,102940.0,0.2428286]